fUSD/lending_fUSD_20250105
["ID","MTS","AMOUNT","RATE_DAILY","PERIOD"]
[347699355,1736073086019,-500.0,9.241e-05,2]
[347699356,1736073086029,-500.0,9.241e-05,2]
[347699357,1736073086042,-500.0,9.241e-05,2]
[347699358,1736073086051,-500.0,9.241e-05,2]
[347699359,1736073086061,-500.0,9.241e-05,2]
[347699360,1736073086071,-542.52498139,9.241e-05,2]
[347699361,1736073086080,-500.0,9.241e-05,2]
[347699362,1736073086089,-500.0,9.241e-05,2]
[347699363,1736073086098,-500.0,9.241e-05,2]
[347699364,1736073086107,-500.0,9.241e-05,2]
[347699365,1736073086116,-500.0,9.241e-05,2]
[347699366,1736073086126,-500.0,9.241e-05,2]
[347699367,1736073086135,-500.0,9.241e-05,2]
[347699368,1736073086144,-500.0,9.241e-05,2]
[347699369,1736073086154,-500.0,9.241e-05,2]
[347699370,1736073086163,-500.0,9.241e-05,2]
[347699371,1736073086172,-502.32348837,9.241e-05,2]
[347699372,1736073086181,-500.0,9.241e-05,2]
[347699373,1736073086190,-2589.06,9.241e-05,2]
[347699374,1736073086200,-500.0,9.241e-05,2]
[347699375,1736073086208,-500.0,9.241e-05,2]
[347699376,1736073086217,-500.0,9.241e-05,2]
[347699377,1736073086226,-500.0,9.241e-05,2]
[347699378,1736073086235,-500.0,9.241e-05,2]
[347699379,1736073086244,-500.0,9.241e-05,2]
[347699380,1736073086253,-500.0,9.241e-05,2]
[347699381,1736073086262,-500.0,9.241e-05,2]
[347699382,1736073086271,-500.0,9.241e-05,2]
[347699383,1736073086280,-500.0,9.241e-05,2]
[347699384,1736073086290,-500.0,9.241e-05,2]
[347699385,1736073086299,-500.0,9.241e-05,2]
[347699386,1736073086309,-500.0,9.241e-05,2]
[347699387,1736073086319,-500.0,9.241e-05,2]
[347699388,1736073086328,-503.72562399,9.241e-05,2]
[347699389,1736073086338,-500.0,9.241e-05,2]
[347699390,1736073086347,-500.0,9.241e-05,2]
[347699391,1736073086356,-500.0,9.241e-05,2]
[347699392,1736073086365,-310.30146298,9.241e-05,2]
[347699393,1736073086374,-500.0,9.241e-05,2]
[347699394,1736073086384,-500.0,9.241e-05,2]
[347699395,1736073086393,-500.0,9.241e-05,2]
[347699396,1736073086404,-500.0,9.241e-05,2]
[347699397,1736073086414,-1031.44,9.241e-05,2]
[347699398,1736073086423,-500.0,9.241e-05,2]
[347699399,1736073086432,-227.72364793,9.241e-05,2]
[347699400,1736073086441,-500.0,9.241e-05,2]
[347699401,1736073086451,-580.64,9.241e-05,2]
[347699402,1736073086459,-500.0,9.241e-05,2]
[347699403,1736073086469,-500.0,9.241e-05,2]
[347699404,1736073086478,-500.0,9.241e-05,2]
[347699405,1736073086487,-500.0,9.241e-05,2]
[347699406,1736073086497,-500.0,9.241e-05,2]
[347699407,1736073086507,-501.48066161,9.241e-05,2]
[347699408,1736073086516,-500.0,9.241e-05,2]
[347699409,1736073086527,-500.0,9.241e-05,2]
[347699410,1736073086537,-500.0,9.241e-05,2]
[347699411,1736073086547,-500.0,9.241e-05,2]
[347699412,1736073086556,-502.37868812,9.241e-05,2]
[347699413,1736073086566,-500.0,9.241e-05,2]
[347699414,1736073086576,-500.0,9.241e-05,2]
[347699415,1736073086585,-500.0,9.241e-05,2]
[347699416,1736073086594,-746.64,9.241e-05,2]
[347699417,1736073086603,-500.0,9.241e-05,2]
[347699418,1736073086613,-501.42755983,9.241e-05,2]
[347699419,1736073086626,-500.0,9.241e-05,2]
[347699420,1736073086638,-500.0,9.241e-05,2]
[347699421,1736073086648,-500.0,9.241e-05,2]
[347699422,1736073086657,-319.57,9.241e-05,2]
[347699423,1736073086669,-500.0,9.241e-05,2]
[347699424,1736073086678,-500.0,9.241e-05,2]
[347699425,1736073086687,-500.0,9.241e-05,2]
[347699426,1736073086697,-500.0,9.241e-05,2]
[347699427,1736073086707,-1027.79,9.241e-05,2]
[347699428,1736073086717,-500.0,9.241e-05,2]
[347699429,1736073086727,-580.68210272,9.241e-05,2]
[347699430,1736073086736,-500.0,9.241e-05,2]
[347699431,1736073086746,-500.0,9.241e-05,2]
[347699432,1736073086756,-500.0,9.241e-05,2]
[347699433,1736073086766,-500.0,9.241e-05,2]
[347699434,1736073086775,-955.19,9.241e-05,2]
[347699435,1736073086786,-500.0,9.241e-05,2]
[347699436,1736073086796,-500.0,9.241e-05,2]
[347699437,1736073086806,-1012.21,9.241e-05,2]
[347699438,1736073086815,-500.0,9.241e-05,2]
[347699439,1736073086825,-500.0,9.241e-05,2]
[347699440,1736073086834,-648.98,9.241e-05,2]
[347699441,1736073086843,-500.0,9.241e-05,2]
[347699442,1736073086853,-500.0,9.241e-05,2]
[347699443,1736073086863,-1432.33,9.241e-05,2]
[347699444,1736073086872,-500.0,9.241e-05,2]
[347699445,1736073086882,-500.0,9.241e-05,2]
[347699446,1736073086891,-797.47,9.241e-05,2]
[347699447,1736073086901,-500.0,9.241e-05,2]
[347699448,1736073086910,-500.0,9.241e-05,2]
[347699449,1736073086920,-500.0,9.241e-05,2]
[347699450,1736073086929,-564.16,9.241e-05,2]
[347699451,1736073086939,-500.0,9.241e-05,2]
[347699452,1736073086949,-737.61,9.241e-05,2]
[347699453,1736073086958,-500.0,9.241e-05,2]
[347699454,1736073086968,-455.28,9.241e-05,2]
[347699455,1736073086978,-500.0,9.241e-05,2]
[347699456,1736073086988,-500.0,9.241e-05,2]
[347699457,1736073086999,-1121.79,9.241e-05,2]
[347699458,1736073087009,-808.25,9.241e-05,2]
[347699459,1736073087019,-1264.32,9.241e-05,2]
[347699460,1736073087029,-500.0,9.241e-05,2]
[347699461,1736073087041,-840.01,9.241e-05,2]
[347699462,1736073087051,-500.0,9.241e-05,2]
[347699463,1736073087061,-733.47,9.241e-05,2]
[347699464,1736073087071,-500.0,9.241e-05,2]
[347699465,1736073087082,-573.13,9.241e-05,2]
[347699466,1736073087092,-985.72,9.241e-05,2]
[347699467,1736073087102,-500.0,9.241e-05,2]
[347699468,1736073087112,-500.0,9.241e-05,2]
[347699469,1736073087122,-500.0,9.241e-05,2]
[347699470,1736073087132,-733.53,9.241e-05,2]
[347699471,1736073087142,-2234.81,9.241e-05,2]
[347699472,1736073087151,-163.458712,9.241e-05,2]
[347699473,1736073087161,-2402.49,9.241e-05,2]
[347699474,1736073087171,-2321.32,9.241e-05,2]
[347699475,1736073087181,-7447.44,9.241e-05,2]
[347699476,1736073087191,-151.0,9.243e-05,2]
[347699477,1736073087202,-151.0,9.243e-05,2]
[347699478,1736073087212,-1257.54,9.243e-05,2]
[347699479,1736073087221,-2275.91,9.243e-05,2]
[347699480,1736073087232,-540.13,9.243e-05,2]
[347699481,1736073087242,-641.97,9.243e-05,2]
[347699482,1736073087252,-500.0,9.243e-05,2]
[347699483,1736073087262,-857.91,9.243e-05,2]
[347699484,1736073087272,-3006.58,9.243e-05,2]
[347699485,1736073087282,-500.0,9.243e-05,2]
[347699486,1736073087293,-768.5,9.243e-05,2]
[347699487,1736073087303,-530.14,9.243e-05,2]
[347699488,1736073087312,-500.0,9.243e-05,2]
[347699489,1736073087323,-500.0,9.243e-05,2]
[347699490,1736073087334,-500.0,9.243e-05,2]
[347699491,1736073087344,-4053.78,9.243e-05,2]
[347699492,1736073087354,-4014.0,9.243e-05,2]
[347699493,1736073087364,-4459.71,9.243e-05,2]
[347699494,1736073087374,-1410.39,9.243e-05,2]
[347699495,1736073087385,-975.49,9.243e-05,2]
[347699496,1736073087395,-5299.75,9.243e-05,2]
[347699497,1736073087405,-18046.74,9.243e-05,2]
[347699498,1736073087415,-500.0,9.243e-05,2]
[347699499,1736073087425,-3870.36,9.243e-05,2]
[347699500,1736073087435,-500.0,9.243e-05,2]
[347699501,1736073087445,-2304.67,9.243e-05,2]
[347699502,1736073087455,-500.0,9.243e-05,2]
[347699503,1736073087465,-544.29,9.243e-05,2]
[347699504,1736073087475,-601.16,9.243e-05,2]
[347699505,1736073087486,-668.05,9.243e-05,2]
[347699506,1736073087495,-772.6,9.243e-05,2]
[347699507,1736073087506,-500.0,9.243e-05,2]
[347699508,1736073087516,-1000.0,9.243e-05,2]
[347699509,1736073087527,-1159.86,9.243e-05,2]
[347699510,1736073087539,-891.1,9.243e-05,2]
[347699511,1736073087550,-500.0,9.243e-05,2]
[347699512,1736073087560,-1017.91,9.243e-05,2]
[347699513,1736073087571,-1239.62,9.243e-05,2]
[347699514,1736073087581,-161.37,9.247e-05,2]
[347699515,1736073087591,-1000.0,9.247e-05,2]
[347699516,1736073087602,-1250.0,9.304e-05,2]
[347699517,1736073087613,-1250.0,9.304e-05,2]
[347699518,1736073087626,-500.0,9.315e-05,2]
[347699519,1736073087639,-817.29,9.315e-05,2]
[347699520,1736073087655,-500.0,9.315e-05,2]
[347699521,1736073087669,-503.88,9.315e-05,2]
[347699522,1736073087681,-319.14164073,9.315e-05,2]
[347699523,1736073087696,-500.0,9.315e-05,2]
[347699524,1736073087711,-500.0,9.315e-05,2]
[347699525,1736073087727,-500.0,9.315e-05,2]
[347699526,1736073087741,-500.0,9.315e-05,2]
[347699527,1736073087752,-511.28,9.315e-05,2]
[347699528,1736073087767,-500.0,9.315e-05,2]
[347699529,1736073087782,-500.0,9.315e-05,2]
[347699530,1736073087797,-500.0,9.315e-05,2]
[347699531,1736073087812,-500.0,9.315e-05,2]
[347699532,1736073087828,-500.0,9.315e-05,2]
[347699533,1736073087843,-500.0,9.315e-05,2]
[347699534,1736073087857,-500.0,9.315e-05,2]
[347699535,1736073087870,-429.37285989,9.315e-05,2]
[347699536,1736073087885,-500.0,9.315e-05,2]
[347699537,1736073087899,-500.0,9.315e-05,2]
[347699538,1736073087911,-500.0,9.315e-05,2]
[347699539,1736073087924,-649.27,9.315e-05,2]
[347699540,1736073087940,-500.0,9.315e-05,2]
[347699541,1736073087951,-500.0,9.315e-05,2]
[347699542,1736073087963,-577.29264285,9.315e-05,2]
[347699543,1736073087979,-831.44,9.315e-05,2]
[347699544,1736073087991,-500.0,9.315e-05,2]
[347699545,1736073088004,-500.0,9.315e-05,2]
[347699546,1736073088017,-500.0,9.315e-05,2]
[347699547,1736073088030,-500.0,9.315e-05,2]
[347699548,1736073088044,-500.0,9.315e-05,2]
[347699549,1736073088056,-500.0,9.315e-05,2]
[347699550,1736073088069,-500.0,9.315e-05,2]
[347699551,1736073088083,-500.0,9.315e-05,2]
[347699552,1736073088096,-500.0,9.315e-05,2]
[347699553,1736073088109,-500.0,9.315e-05,2]
[347699554,1736073088122,-500.0,9.315e-05,2]
[347699555,1736073088134,-500.0,9.315e-05,2]
[347699556,1736073088147,-821.89,9.315e-05,2]
[347699557,1736073088160,-500.0,9.315e-05,2]
[347699558,1736073088172,-500.0,9.315e-05,2]
[347699559,1736073088185,-500.0,9.315e-05,2]
[347699560,1736073088198,-500.0,9.315e-05,2]
[347699561,1736073088210,-500.0,9.315e-05,2]
[347699562,1736073088222,-500.0,9.315e-05,2]
[347699563,1736073088235,-500.0,9.315e-05,2]
[347699564,1736073088247,-500.0,9.315e-05,2]
[347699565,1736073088260,-500.0,9.315e-05,2]
[347699566,1736073088273,-500.0,9.315e-05,2]
[347699567,1736073088285,-500.0,9.315e-05,2]
[347699568,1736073088297,-634.54,9.315e-05,2]
[347699569,1736073088309,-500.0,9.315e-05,2]
[347699570,1736073088322,-500.0,9.315e-05,2]
[347699571,1736073088335,-500.0,9.315e-05,2]
[347699572,1736073088347,-500.0,9.315e-05,2]
[347699573,1736073088360,-500.0,9.315e-05,2]
[347699574,1736073088372,-500.0,9.315e-05,2]
[347699575,1736073088385,-500.0,9.315e-05,2]
[347699576,1736073088398,-500.0,9.315e-05,2]
[347699577,1736073088410,-500.0,9.315e-05,2]
[347699578,1736073088423,-500.0,9.315e-05,2]
[347699579,1736073088436,-500.0,9.315e-05,2]
[347699580,1736073088448,-500.0,9.315e-05,2]
[347699581,1736073088461,-500.0,9.315e-05,2]
[347699582,1736073088474,-500.0,9.315e-05,2]
[347699583,1736073088487,-500.0,9.315e-05,2]
[347699584,1736073088499,-501.99,9.315e-05,2]
[347699585,1736073088511,-500.0,9.315e-05,2]
[347699586,1736073088522,-500.0,9.315e-05,2]
[347699587,1736073088535,-500.0,9.315e-05,2]
[347699588,1736073088546,-500.0,9.315e-05,2]
[347699589,1736073088557,-500.0,9.315e-05,2]
[347699590,1736073088570,-500.0,9.315e-05,2]
[347699591,1736073088582,-649.35,9.315e-05,2]
[347699592,1736073088593,-392.37,9.315e-05,2]
[347699593,1736073088605,-500.0,9.315e-05,2]
[347699594,1736073088617,-500.0,9.315e-05,2]
[347699595,1736073088632,-287.8,9.315e-05,2]
[347699596,1736073088645,-500.0,9.315e-05,2]
[347699597,1736073088657,-744.43,9.315e-05,2]
[347699598,1736073088669,-500.0,9.315e-05,2]
[347699599,1736073088681,-500.0,9.315e-05,2]
[347699600,1736073088694,-500.0,9.315e-05,2]
[347699601,1736073088705,-500.0,9.315e-05,2]
[347699602,1736073088717,-500.0,9.315e-05,2]
[347699603,1736073088729,-500.0,9.315e-05,2]
[347699604,1736073088741,-500.0,9.315e-05,2]
[347699605,1736073088753,-500.0,9.315e-05,2]
[347699606,1736073088765,-500.0,9.315e-05,2]
[347699607,1736073088777,-500.0,9.315e-05,2]
[347699608,1736073088792,-500.0,9.315e-05,2]
[347699609,1736073088805,-500.0,9.315e-05,2]
[347699610,1736073088817,-500.0,9.315e-05,2]
[347699611,1736073088830,-500.0,9.315e-05,2]
[347699612,1736073088841,-500.0,9.315e-05,2]
[347699613,1736073088853,-500.0,9.315e-05,2]
[347699614,1736073088866,-500.0,9.315e-05,2]
[347699615,1736073088878,-500.0,9.315e-05,2]
[347699616,1736073088891,-500.0,9.315e-05,2]
[347699617,1736073088902,-500.0,9.315e-05,2]
[347699618,1736073088914,-500.0,9.315e-05,2]
[347699619,1736073088926,-500.0,9.315e-05,2]
[347699620,1736073088937,-500.0,9.315e-05,2]
[347699621,1736073088948,-500.0,9.315e-05,2]
[347699622,1736073088960,-500.0,9.315e-05,2]
[347699623,1736073088973,-500.0,9.315e-05,2]
[347699624,1736073088984,-500.0,9.315e-05,2]
[347699625,1736073088996,-500.0,9.315e-05,2]
[347699626,1736073089008,-500.0,9.315e-05,2]
[347699627,1736073089020,-500.0,9.315e-05,2]
[347699628,1736073089032,-782.15,9.315e-05,2]
[347699629,1736073089045,-500.0,9.315e-05,2]
[347699630,1736073089056,-500.0,9.315e-05,2]
[347699631,1736073089068,-500.0,9.315e-05,2]
[347699632,1736073089080,-500.0,9.315e-05,2]
[347699633,1736073089092,-534.18,9.315e-05,2]
[347699634,1736073089104,-500.0,9.315e-05,2]
[347699635,1736073089115,-500.0,9.315e-05,2]
[347699636,1736073089127,-911.54,9.315e-05,2]
[347699637,1736073089139,-500.0,9.315e-05,2]
[347699638,1736073089150,-500.0,9.315e-05,2]
[347699639,1736073089161,-500.0,9.315e-05,2]
[347699640,1736073089173,-1041.87,9.315e-05,2]
[347699641,1736073089184,-500.0,9.315e-05,2]
[347699642,1736073089196,-500.0,9.315e-05,2]
[347699643,1736073089206,-500.0,9.315e-05,2]
[347699644,1736073089219,-500.0,9.315e-05,2]
[347699645,1736073089231,-500.0,9.315e-05,2]
[347699646,1736073089242,-673.47,9.315e-05,2]
[347699647,1736073089254,-500.0,9.315e-05,2]
[347699648,1736073089269,-500.0,9.315e-05,2]
[347699649,1736073089280,-500.0,9.315e-05,2]
[347699650,1736073089293,-500.0,9.315e-05,2]
[347699651,1736073089304,-500.0,9.315e-05,2]
[347699652,1736073089315,-1486.24,9.315e-05,2]
[347699653,1736073089327,-500.0,9.315e-05,2]
[347699654,1736073089338,-500.0,9.315e-05,2]
[347699655,1736073089350,-500.0,9.315e-05,2]
[347699656,1736073089362,-764.66,9.315e-05,2]
[347699657,1736073089374,-500.0,9.315e-05,2]
[347699658,1736073089385,-500.0,9.315e-05,2]
[347699659,1736073089396,-500.0,9.315e-05,2]
[347699660,1736073089407,-500.0,9.315e-05,2]
[347699661,1736073089418,-500.0,9.315e-05,2]
[347699662,1736073089429,-500.0,9.315e-05,2]
[347699663,1736073089441,-500.0,9.315e-05,2]
[347699664,1736073089452,-500.0,9.315e-05,2]
[347699665,1736073089463,-1178.21,9.315e-05,2]
[347699666,1736073089475,-500.0,9.315e-05,2]
[347699667,1736073089487,-500.0,9.315e-05,2]
[347699668,1736073089498,-500.0,9.315e-05,2]
[347699669,1736073089510,-391.69210684,9.315e-05,2]
[347699670,1736073089521,-725.21,9.315e-05,2]
[347699671,1736073089533,-500.0,9.315e-05,2]
[347699672,1736073089543,-515.39,9.315e-05,2]
[347699673,1736073089555,-500.0,9.315e-05,2]
[347699674,1736073089566,-500.0,9.315e-05,2]
[347699675,1736073089577,-2078.88,9.315e-05,2]
[347699676,1736073089589,-500.0,9.315e-05,2]
[347699677,1736073089600,-500.0,9.315e-05,2]
[347699678,1736073089611,-500.0,9.315e-05,2]
[347699679,1736073089625,-501.64,9.315e-05,2]
[347699680,1736073089636,-500.0,9.315e-05,2]
[347699681,1736073089648,-500.0,9.315e-05,2]
[347699682,1736073089659,-500.0,9.315e-05,2]
[347699683,1736073089672,-1137.07,9.315e-05,2]
[347699684,1736073089683,-500.0,9.315e-05,2]
[347699685,1736073089696,-500.0,9.315e-05,2]
[347699686,1736073089708,-580.67473313,9.315e-05,2]
[347699687,1736073089719,-500.0,9.315e-05,2]
[347699688,1736073089731,-784.28,9.315e-05,2]
[347699689,1736073089742,-500.0,9.315e-05,2]
[347699690,1736073089754,-1137.42,9.315e-05,2]
[347699691,1736073089765,-1588.7,9.315e-05,2]
[347699692,1736073089776,-524.3,9.315e-05,2]
[347699693,1736073089788,-500.0,9.315e-05,2]
[347699694,1736073089800,-500.0,9.315e-05,2]
[347699695,1736073089811,-860.54,9.315e-05,2]
[347699696,1736073089822,-538.99,9.315e-05,2]
[347699697,1736073089834,-852.42,9.315e-05,2]
[347699698,1736073089845,-500.0,9.315e-05,2]
[347699699,1736073089857,-500.0,9.315e-05,2]
[347699700,1736073089869,-500.0,9.315e-05,2]
[347699701,1736073089883,-843.67,9.315e-05,2]
[347699702,1736073089896,-500.0,9.315e-05,2]
[347699703,1736073089909,-500.0,9.315e-05,2]
[347699704,1736073089922,-522.78,9.315e-05,2]
[347699705,1736073089936,-500.0,9.315e-05,2]
[347699706,1736073089949,-500.0,9.315e-05,2]
[347699707,1736073089961,-500.0,9.315e-05,2]
[347699708,1736073089975,-500.0,9.315e-05,2]
[347699709,1736073089988,-500.0,9.315e-05,2]
[347699710,1736073090002,-500.0,9.315e-05,2]
[347699711,1736073090016,-500.0,9.315e-05,2]
[347699712,1736073090029,-500.0,9.315e-05,2]
[347699713,1736073090042,-803.57,9.315e-05,2]
[347699714,1736073090056,-862.09,9.315e-05,2]
[347699715,1736073090069,-938.47,9.315e-05,2]
[347699716,1736073090082,-500.0,9.315e-05,2]
[347699717,1736073090097,-500.0,9.315e-05,2]
[347699718,1736073090110,-500.0,9.315e-05,2]
[347699719,1736073090123,-500.0,9.315e-05,2]
[347699720,1736073090136,-500.0,9.315e-05,2]
[347699721,1736073090149,-500.0,9.315e-05,2]
[347699722,1736073090162,-500.0,9.315e-05,2]
[347699723,1736073090175,-500.0,9.315e-05,2]
[347699724,1736073090189,-500.0,9.315e-05,2]
[347699725,1736073090202,-500.0,9.315e-05,2]
[347699726,1736073090215,-500.0,9.315e-05,2]
[347699727,1736073090228,-500.0,9.315e-05,2]
[347699728,1736073090241,-500.0,9.315e-05,2]
[347699729,1736073090254,-500.0,9.315e-05,2]
[347699730,1736073090267,-500.0,9.315e-05,2]
[347699731,1736073090280,-500.0,9.315e-05,2]
[347699732,1736073090294,-1559.17,9.315e-05,2]
[347699733,1736073090307,-500.0,9.315e-05,2]
[347699734,1736073090320,-500.0,9.315e-05,2]
[347699735,1736073090333,-500.0,9.315e-05,2]
[347699736,1736073090346,-500.0,9.315e-05,2]
[347699737,1736073090360,-500.0,9.315e-05,2]
[347699738,1736073090372,-521.81,9.315e-05,2]
[347699739,1736073090385,-614.33,9.315e-05,2]
[347699740,1736073090398,-500.0,9.315e-05,2]
[347699741,1736073090412,-713.73,9.315e-05,2]
[347699742,1736073090426,-500.0,9.315e-05,2]
[347699743,1736073090440,-500.0,9.315e-05,2]
[347699744,1736073090453,-500.0,9.315e-05,2]
[347699745,1736073090464,-708.64,9.315e-05,2]
[347699746,1736073090689,-500.0,9.315e-05,2]
[347699747,1736073090708,-1654.63,9.315e-05,2]
[347699748,1736073090718,-500.0,9.315e-05,2]
[347699749,1736073090727,-500.0,9.315e-05,2]
[347699750,1736073090736,-500.0,9.315e-05,2]
[347699751,1736073090746,-500.0,9.315e-05,2]
[347699752,1736073090756,-500.0,9.315e-05,2]
[347699753,1736073090765,-500.0,9.315e-05,2]
[347699754,1736073090774,-747.18,9.315e-05,2]
[347699755,1736073090783,-500.0,9.315e-05,2]
[347699756,1736073090794,-1755.13,9.315e-05,2]
[347699757,1736073090803,-500.0,9.315e-05,2]
[347699758,1736073090812,-500.0,9.315e-05,2]
[347699759,1736073090822,-500.0,9.315e-05,2]
[347699760,1736073090831,-500.0,9.315e-05,2]
[347699761,1736073090839,-500.0,9.315e-05,2]
[347699762,1736073090848,-500.0,9.315e-05,2]
[347699763,1736073090857,-591.8,9.315e-05,2]
[347699764,1736073090866,-1733.2,9.315e-05,2]
[347699765,1736073090875,-500.0,9.315e-05,2]
[347699766,1736073090884,-500.0,9.315e-05,2]
[347699767,1736073090893,-500.0,9.315e-05,2]
[347699768,1736073090903,-500.0,9.315e-05,2]
[347699769,1736073090912,-500.0,9.315e-05,2]
[347699770,1736073090922,-778.03,9.315e-05,2]
[347699771,1736073090931,-500.0,9.315e-05,2]
[347699772,1736073090941,-500.0,9.315e-05,2]
[347699773,1736073090950,-500.0,9.315e-05,2]
[347699774,1736073090958,-500.0,9.315e-05,2]
[347699775,1736073090967,-500.0,9.315e-05,2]
[347699776,1736073090976,-500.0,9.315e-05,2]
[347699777,1736073090985,-500.0,9.315e-05,2]
[347699778,1736073090994,-500.0,9.315e-05,2]
[347699779,1736073091003,-500.0,9.315e-05,2]
[347699780,1736073091012,-500.0,9.315e-05,2]
[347699781,1736073091021,-500.0,9.315e-05,2]
[347699782,1736073091030,-500.0,9.315e-05,2]
[347699783,1736073091040,-500.0,9.315e-05,2]
[347699784,1736073091049,-500.0,9.315e-05,2]
[347699785,1736073091058,-500.0,9.315e-05,2]
[347699786,1736073091067,-343.84492033,9.315e-05,2]
[347699787,1736073091078,-574.04,9.315e-05,2]
[347699788,1736073091088,-560.39,9.315e-05,2]
[347699789,1736073091096,-500.0,9.315e-05,2]
[347699790,1736073091105,-500.0,9.315e-05,2]
[347699791,1736073091115,-500.0,9.315e-05,2]
[347699792,1736073091124,-500.0,9.315e-05,2]
[347699793,1736073091134,-500.0,9.315e-05,2]
[347699794,1736073091144,-500.0,9.315e-05,2]
[347699795,1736073091154,-500.0,9.315e-05,2]
[347699796,1736073091165,-500.0,9.315e-05,2]
[347699797,1736073091175,-500.0,9.315e-05,2]
[347699798,1736073091184,-500.0,9.315e-05,2]
[347699799,1736073091193,-568.81,9.315e-05,2]
[347699800,1736073091204,-500.0,9.315e-05,2]
[347699801,1736073091214,-500.0,9.315e-05,2]
[347699802,1736073091223,-676.43,9.315e-05,2]
[347699803,1736073091232,-500.0,9.315e-05,2]
[347699804,1736073091241,-511.98,9.315e-05,2]
[347699805,1736073091252,-874.59,9.315e-05,2]
[347699806,1736073091262,-500.0,9.315e-05,2]
[347699807,1736073091274,-500.0,9.315e-05,2]
[347699808,1736073091286,-500.0,9.315e-05,2]
[347699809,1736073091295,-508.67692627,9.315e-05,2]
[347699810,1736073091304,-821.41,9.315e-05,2]
[347699811,1736073091314,-500.0,9.315e-05,2]
[347699812,1736073091325,-500.0,9.315e-05,2]
[347699813,1736073091335,-680.69,9.315e-05,2]
[347699814,1736073091345,-500.0,9.315e-05,2]
[347699815,1736073091355,-500.0,9.315e-05,2]
[347699816,1736073091366,-501.74353491,9.315e-05,2]
[347699817,1736073091374,-500.0,9.315e-05,2]
[347699818,1736073091383,-539.36,9.315e-05,2]
[347699819,1736073091393,-500.0,9.315e-05,2]
[347699820,1736073091402,-500.0,9.315e-05,2]
[347699821,1736073091411,-500.0,9.315e-05,2]
[347699822,1736073091420,-500.0,9.315e-05,2]
[347699823,1736073091430,-500.0,9.315e-05,2]
[347699824,1736073091439,-500.0,9.315e-05,2]
[347699825,1736073091448,-500.0,9.315e-05,2]
[347699826,1736073091457,-914.79,9.315e-05,2]
[347699827,1736073091466,-500.0,9.315e-05,2]
[347699828,1736073091476,-543.0,9.315e-05,2]
[347699829,1736073091485,-2594.56,9.315e-05,2]
[347699830,1736073091494,-551.94,9.315e-05,2]
[347699831,1736073091503,-500.0,9.315e-05,2]
[347699832,1736073091512,-188.06,9.315e-05,2]
[347699833,1736073091521,-1500.34,9.315e-05,2]
[347699834,1736073091530,-920.09,9.315e-05,2]
[347699835,1736073091539,-1254.38,9.315e-05,2]
[347699836,1736073091550,-502.72857223,9.315e-05,2]
[347699837,1736073091559,-500.0,9.315e-05,2]
[347699838,1736073091569,-500.0,9.315e-05,2]
[347699839,1736073091578,-785.8,9.315e-05,2]
[347699840,1736073091587,-588.19,9.315e-05,2]
[347699841,1736073091596,-500.0,9.315e-05,2]
[347699842,1736073091606,-500.0,9.315e-05,2]
[347699843,1736073091615,-2006.93,9.315e-05,2]
[347699844,1736073091627,-610.53,9.315e-05,2]
[347699845,1736073091637,-612.12,9.315e-05,2]
[347699846,1736073091646,-500.0,9.315e-05,2]
[347699847,1736073091656,-766.820654,9.315e-05,2]
[347699848,1736073091667,-500.0,9.315e-05,2]
[347699849,1736073091676,-500.0,9.315e-05,2]
[347699850,1736073091685,-692.37,9.315e-05,2]
[347699851,1736073091696,-500.0,9.315e-05,2]
[347699852,1736073091705,-500.0,9.315e-05,2]
[347699853,1736073091715,-500.0,9.315e-05,2]
[347699854,1736073091725,-1136.87,9.315e-05,2]